bitfinex-derivatives/quotes_SOLF0:USTF0_20240823
["timestamp","ask_amount","ask_price","bid_price","bid_amount"]
[1724381389139,0.04852824,144.82,144.81,1.38094618]
[1724381389345,3.50042824,144.82,144.81,1.38094618]
[1724381389744,3.50042824,144.82,144.81,3.8760721]
[1724381394547,3.50042824,144.82,144.81,1.38094618]
[1724381402051,3.4525,144.8,144.74,7.4]
[1724381402352,0.05259915,144.78,144.75,3.87805028]
[1724381402651,0.05259915,144.78,144.76,3.87805028]
[1724381402652,0.04975497,144.78,144.76,3.87805028]
[1724381402952,0.04975497,144.78,144.77,3.87805028]
[1724381403345,0.04975497,144.78,144.77,11.27805028]
[1724381403650,0.04975497,144.78,144.77,14.73105028]
[1724381403846,61.17696893,144.9,144.77,7.4]
[1724381404152,3.4517,144.83,144.8,10.8522]
[1724381404355,3.4517,144.83,144.81,1.38099716]
[1724381404550,3.4517,144.83,144.82,1.38099716]
[1724381405652,0.04504591,144.84,144.82,8.78099716]
[1724381405856,0.04504591,144.84,144.83,1.38099716]
[1724381406049,0.04504591,144.84,144.83,3.874103]
[1724381406248,0.04504591,144.84,144.83,7.325703]
[1724381407555,0.04504591,144.84,144.83,7.32548072]
[1724381408544,0.04504591,144.84,144.83,3.4516]
[1724381408743,0.04504591,144.84,144.83,7.32548073]
[1724381410757,27.6,144.87,144.82,7.4]
[1724381410957,27.6,144.87,144.81,0.04975497]
[1724381410958,27.6,144.87,144.84,7.4]
[1724381411154,27.6,144.87,144.85,3.87452914]
[1724381411360,27.6,144.87,144.86,1.3804873]
[1724381412561,27.6,144.87,144.86,12.2312873]
[1724381412962,27.6,144.87,144.86,14.72481762]
[1724381413364,0.05160922,144.88,144.87,3.4506]
[1724381413563,0.05160922,144.88,144.87,14.72461762]
[1724381414368,0.05160922,144.88,144.87,14.72271511]
[1724381416466,0.05160922,144.88,144.87,12.23084301]
[1724381418571,0.05160922,144.88,144.87,4.83084301]
[1724381418773,0.05160922,144.88,144.87,1.38024301]
[1724381419275,0.05160922,144.88,144.86,3.4507]
[1724381420769,0.05160922,144.88,144.87,1.38030373]
[1724381421171,3.50200922,144.88,144.85,3.50056747]
[1724381421379,0.05160922,144.88,144.86,1.38029837]
[1724381421565,0.05160922,144.88,144.85,7.44946747]
[1724381421965,0.05160922,144.88,144.86,1.38030157]
[1724381422176,0.05160922,144.88,144.87,8.78027371]
[1724381423273,0.05160922,144.88,144.87,12.23087371]
[1724381424178,0.05160922,144.88,144.87,10.8506]
[1724381424777,0.05160922,144.88,144.85,7.44946747]
[1724381426074,0.05160922,144.88,144.86,3.4508]
[1724381431587,3.50200922,144.88,144.85,10.90046747]
[1724381432779,3.50200922,144.88,144.85,3.50046747]
[1724381433383,3.4507,144.87,144.85,0.04946747]
[1724381434510,0.05160922,144.88,144.85,0.04946747]
[1724381435278,3.4507,144.87,144.85,0.04946747]
[1724381436077,10.8508,144.86,144.85,0.04946747]
[1724381443288,3.4515,144.84,144.79,7.4]
[1724381443591,10.8515,144.84,144.79,7.4]
[1724381443789,7.4,144.84,144.79,7.4]
[1724381444289,3.49986718,144.83,144.81,3.452]
[1724381444995,0.04826718,144.83,144.8,0.04533341]
[1724381445386,3.4519,144.82,144.8,0.04533341]
[1724381447695,10.852,144.81,144.8,0.04533341]
[1724381448400,7.4,144.81,144.61,3.17425584]
[1724381448601,1.2951,144.8,144.72,7.4]
[1724381448800,7.4,144.79,144.73,1.38128508]
[1724381449100,3.4534,144.76,144.74,1.38128508]
[1724381449502,0.04540091,144.76,144.72,7.4]
[1724381449693,0.04540091,144.76,144.74,7.4]
[1724381450998,0.04540091,144.76,144.75,7.4]
[1724381451502,0.04540091,144.76,144.75,10.8535]
[1724381452300,0.04540091,144.76,144.75,7.4]
[1724381452897,0.04540091,144.76,144.74,7.4]
[1724381454503,0.04540091,144.76,144.74,10.8537]
[1724381458697,0.04540091,144.76,144.75,7.4]
[1724381459406,2.6424,144.85,144.75,7.4]
[1724381459606,7.4,144.83,144.76,7.4]
[1724381460099,3.4523,144.8,144.76,10.8531]
[1724381460508,0.04759792,144.79,144.77,0.04540091]
[1724381463511,0.04759792,144.79,144.78,7.4]
[1724381463709,1.2659,144.86,144.78,7.4]
[1724381464008,7.4,144.89,144.83,7.4]
[1724381464610,1.3338,144.93,144.84,7.4]
[1724381464813,0.04879041,144.87,144.85,0.05061136]
[1724381466110,3.49949041,144.87,144.85,0.05061136]
[1724381468214,0.04879041,144.87,144.85,0.05061136]
[1724381469308,3.49939041,144.87,144.85,0.05061136]
[1724381471218,0.04879041,144.87,144.85,0.05061136]
[1724381471517,0.04879041,144.87,144.86,7.4]
[1724381472117,0.04879041,144.87,144.86,10.8508]
[1724381472706,0.04879041,144.87,144.86,7.4]
[1724381474312,0.04879041,144.87,144.85,3.50161136]
[1724381475719,0.04879041,144.87,144.85,0.05061136]
[1724381476020,3.49959041,144.87,144.85,0.05061136]
[1724381477015,0.04879041,144.87,144.85,0.05061136]
[1724381477813,0.04879041,144.87,144.86,7.4]
[1724381479922,0.04879041,144.87,144.86,10.8508]
[1724381485430,27.6,144.95,144.88,3.4502]
[1724381485724,27.6,144.95,144.9,7.4]
[1724381486118,27.6,144.95,144.88,10.8502]
[1724381486317,0.04560194,144.93,144.9,7.44658148]
[1724381486924,0.04560194,144.93,144.92,10.8494]
[1724381494129,0.04560194,144.93,144.92,3.4494]
[1724381494330,0.04560194,144.93,144.92,10.8494]
[1724381494726,3.448,144.98,144.94,3.4489]
[1724381494929,3.448,144.98,144.95,7.4]
[1724381495130,7.4,145.0,144.91,1.3429]
[1724381495131,3.4484,144.97,144.91,1.3429]
[1724381495327,3.4484,144.97,144.94,7.4]
[1724381495835,3.49246494,144.97,144.94,0.04406782]
[1724381496934,3.49246494,144.97,144.94,3.49296782]
[1724381497135,3.49246494,144.97,144.94,0.04406782]
[1724381499141,3.49246494,144.97,144.94,3.49296782]
[1724381500141,3.49246494,144.97,144.94,10.89296782]
[1724381500935,0.04406494,144.97,144.94,10.89296782]
[1724381501645,3.49226494,144.97,144.94,10.89296782]
[1724381507041,0.04406494,144.97,144.96,10.8485]
[1724381508245,3.4473,145.01,145.0,7.4]
[1724381509144,3.4473,145.01,144.99,7.44624044]
[1724381512744,3.4475,145.0,144.99,7.44624044]
[1724381513549,3.4475,145.0,144.99,0.04624044]
[1724381538872,3.4475,145.0,144.99,7.44624044]
[1724381539062,3.4474,145.01,144.99,7.44624044]
[1724381539376,3.4474,145.01,145.0,7.4]
[1724381540474,0.04535932,145.02,145.0,7.4]
[1724381541267,3.4473,145.01,145.0,7.4]
[1724381542174,3.4473,145.01,144.99,7.44624044]
[1724381550682,3.4473,145.01,144.99,10.89384044]
[1724381550983,3.4473,145.01,144.99,7.44624044]
[1724381560686,3.4475,145.0,144.99,7.44624044]
[1724381560893,0.04535932,145.02,144.99,7.44624044]
[1724381561389,3.4475,145.01,144.99,7.44624044]
[1724381563091,3.4475,145.0,144.99,0.04624044]
[1724381563988,3.4475,145.0,144.99,7.44624044]
[1724381564189,3.4473,145.01,144.99,7.44624044]
[1724381565090,3.4475,145.0,144.99,7.44624044]
[1724381566993,3.4475,145.0,144.99,0.04624044]
[1724381572898,7.4,145.0,144.93,9.88880721]
[1724381573204,9.5319,145.05,144.94,1.37987076]
[1724381573205,7.4,144.99,144.94,1.37987076]
[1724381573501,3.4487,144.96,144.93,7.4]
[1724381573700,3.4487,144.96,144.94,1.37994439]
[1724381573894,3.49358932,144.96,144.94,0.0481638]
[1724381574295,3.49358932,144.96,144.94,7.4481638]
[1724381574496,3.49358932,144.96,144.95,7.4]
[1724381575101,0.04488932,144.96,144.95,7.4]
[1724381575699,0.04488932,144.96,144.95,10.8487]
[1724381575898,0.04488932,144.96,144.95,12.22855968]
[1724381576403,0.04488932,144.96,144.95,10.8487]
[1724381578301,0.04488932,144.96,144.95,7.4]
[1724381580402,3.49338932,144.96,144.94,10.8969638]
[1724381580600,3.49338932,144.96,144.94,0.0481638]
[1724381590408,3.4487,144.95,144.94,0.0481638]
[1724381590802,3.4487,144.95,144.94,7.4481638]
[1724381594507,3.4487,144.95,144.94,0.0481638]
[1724381595609,3.4498,144.91,144.84,4.096]
[1724381595914,7.4,144.96,144.89,7.4]
[1724381596708,3.4494,144.93,144.91,0.05150067]
[1724381597412,3.4494,144.92,144.91,0.05150067]
[1724381597710,0.04566404,144.94,144.91,0.05150067]
[1724381598415,3.4492,144.93,144.91,0.05150067]
[1724381602014,3.4494,144.92,144.91,0.05150067]
[1724381620623,10.8494,144.92,144.91,0.05150067]
[1724381621325,3.4505,144.88,144.82,60.1275751]
[1724381621527,3.4505,144.88,144.83,1.38032639]
[1724381621730,3.4505,144.88,144.85,3.4509]
[1724381622332,3.50028022,144.88,144.85,3.49433178]
[1724381622741,0.04978022,144.88,144.86,3.4508]
[1724381627827,3.50018022,144.88,144.86,3.4508]
[1724381628033,0.04978022,144.88,144.85,3.49443178]
[1724381628337,7.44978022,144.88,144.85,3.49443178]
[1724381629537,3.4506,144.87,144.85,3.49443178]
[1724381630243,3.4506,144.87,144.85,0.04343178]
[1724381633446,3.50018022,144.88,144.85,7.44343178]
[1724381634034,3.50018022,144.88,144.85,0.04343178]
[1724381634433,3.50018022,144.88,144.86,3.4508]
[1724381639238,0.04978022,144.88,144.85,0.04343178]
[1724381639837,3.50028022,144.88,144.85,3.49433178]
[1724381641941,0.04978022,144.88,144.86,3.4507]
[1724381642139,0.04978022,144.88,144.85,7.44343178]
[1724381642945,0.04978022,144.88,144.85,0.04343178]
[1724381643733,0.04978022,144.88,144.87,3.4506]
[1724381644945,0.04978022,144.88,144.86,3.4507]
[1724381651749,3.50018022,144.88,144.86,3.4507]
[1724381651955,0.04978022,144.88,144.85,0.04343178]
[1724381652149,0.04978022,144.88,144.85,7.44343178]
[1724381653350,0.04978022,144.88,144.86,3.4508]
[1724381655158,0.04978022,144.88,144.85,7.44343178]
[1724381655458,0.04978022,144.88,144.86,1.38045115]
[1724381655657,0.04978022,144.88,144.85,7.44343178]
[1724381655859,0.04978022,144.88,144.86,1.38045115]
[1724381656158,0.04978022,144.88,144.85,7.44343178]
[1724381656359,0.04978022,144.88,144.86,4.83125115]
[1724381656558,0.04978022,144.88,144.86,3.4508]
[1724381667174,7.4,144.87,144.85,0.04343178]
[1724381667669,10.8508,144.87,144.85,0.04343178]
[1724381684680,3.4508,144.86,144.85,0.04343178]
[1724381686583,3.4512,144.85,144.82,3.4517]
[1724381686885,7.4,144.84,144.83,1.38085862]
[1724381687281,10.8514,144.84,144.83,1.38085862]
[1724381687881,10.8514,144.84,144.82,0.04211943]
[1724381688177,10.8514,144.84,144.83,1.38084151]
[1724381688688,7.4,144.84,144.83,1.38084151]
[1724381691185,7.4,144.84,144.82,3.49391943]
[1724381691383,7.4,144.84,144.83,1.38084902]
[1724381694584,7.4,144.84,144.82,3.49391943]
[1724381694789,7.4,144.84,144.83,1.38084902]
[1724381697288,10.90334841,144.85,144.83,1.38084902]
[1724381697490,10.90334841,144.85,144.82,3.49391943]
[1724381698591,10.90334841,144.85,144.83,1.38084869]
[1724381698893,10.90334841,144.85,144.82,3.49391943]
[1724381699089,10.90334841,144.85,144.83,1.38084869]
[1724381699290,10.90334841,144.85,144.82,3.49391943]
[1724381700791,10.90334841,144.85,144.83,1.38084549]
[1724381700980,10.90334841,144.85,144.82,3.49391943]
[1724381701179,3.4513,144.84,144.83,1.38084549]
[1724381701386,10.8513,144.84,144.82,0.04211943]
[1724381701786,7.4,144.84,144.82,0.04211943]
[1724381702291,0.05214841,144.85,144.82,3.49381943]
[1724381702292,3.50334841,144.85,144.82,3.49381943]
[1724381702593,10.90334841,144.85,144.82,3.49381943]
[1724381705586,3.50334841,144.85,144.82,3.49381943]
[1724381705784,10.90334841,144.85,144.82,3.49381943]
[1724381706382,3.4515,144.84,144.82,3.49391943]
[1724381706694,7.4,144.83,144.82,0.04211943]
[1724381707489,10.8516,144.83,144.82,0.04211943]
[1724381708989,7.4,144.83,144.82,0.04211943]
[1724381709695,10.8514,144.84,144.82,0.04211943]
[1724381711990,10.90334841,144.85,144.82,3.49391943]
[1724381712393,7.45214841,144.85,144.82,0.04211943]
[1724381712590,0.05214841,144.85,144.83,3.4514]
[1724381713992,0.05214841,144.85,144.84,3.4513]
[1724381716791,0.05214841,144.85,144.84,4.83189922]
[1724381717798,0.05214841,144.85,144.84,3.4513]
[1724381718089,0.05214841,144.85,144.84,4.83182317]
[1724381719696,0.05214841,144.85,144.84,12.23182317]
[1724381721386,0.05214841,144.85,144.84,12.23181111]
[1724381721897,27.6,144.9,144.88,3.4504]
[1724381722197,35.0,144.9,144.84,7.4]
[1724381722390,38.4501,144.9,144.87,3.4505]
[1724381722786,35.05268005,144.9,144.87,3.50139294]
[1724381723388,3.4502,144.89,144.87,0.05089294]
[1724381725903,3.4502,144.89,144.87,3.50149294]
[1724381726297,10.8502,144.89,144.87,0.05089294]
[1724381732196,3.4502,144.89,144.87,0.05089294]
[1724381734104,35.05268005,144.9,144.87,0.05089294]
[1724381734903,7.45268005,144.9,144.87,0.05089294]
[1724381735406,3.4502,144.89,144.87,0.05089294]
[1724381741009,10.90268005,144.9,144.87,3.50149294]
[1724381742105,3.4503,144.89,144.87,0.05089294]
[1724381742411,7.4,144.88,144.87,0.05089294]
[1724381742912,3.4502,144.89,144.87,0.05089294]
[1724381743905,3.4502,144.89,144.87,3.50149294]
[1724381744211,10.90268005,144.9,144.87,3.50149294]
[1724381745502,3.4502,144.89,144.87,0.05089294]
[1724381745706,10.8502,144.89,144.87,0.05089294]
[1724381751411,3.4502,144.89,144.87,0.05089294]
[1724381757722,3.4504,144.88,144.87,0.05089294]
[1724381758026,7.4,144.89,144.87,0.05089294]
[1724381759322,3.4504,144.88,144.87,0.05089294]
[1724381765318,10.8504,144.88,144.87,0.05089294]
[1724381768521,3.4504,144.88,144.87,0.05089294]
[1724381768723,3.4503,144.89,144.87,0.05089294]
[1724381769428,3.4504,144.88,144.87,0.05089294]
[1724381781033,3.4511,144.85,144.82,3.4518]
[1724381781733,6.32776055,144.84,144.82,3.4518]
[1724381781930,6.32776055,144.83,144.82,10.8951749]
[1724381782735,0.05262955,144.84,144.82,10.8951749]
[1724381782927,6.32784996,144.83,144.82,10.8951749]
[1724381783126,0.05262955,144.84,144.82,10.8951749]
[1724381783429,6.32781793,144.83,144.82,10.8951749]
[1724381783731,6.32781793,144.83,144.82,3.4951749]
[1724381785925,0.05262955,144.84,144.82,3.4951749]
[1724381786130,3.50402955,144.84,144.82,0.0433749]
[1724381791342,3.4516,144.83,144.82,0.0433749]
[1724381791634,10.8516,144.83,144.82,0.0433749]
[1724381792738,3.4516,144.83,144.82,0.0433749]
[1724381794437,0.05262955,144.84,144.82,7.4433749]
[1724381794744,35.0,144.92,144.86,7.4]
[1724381794935,3.4501,144.9,144.86,7.4]
[1724381795630,0.05255865,144.89,144.87,3.50098487]
[1724381795837,0.05255865,144.89,144.87,0.05038487]
[1724381796232,0.05255865,144.89,144.87,3.50088487]
[1724381797729,0.05255865,144.89,144.88,3.4504]
[1724381804339,0.05255865,144.89,144.87,0.05038487]
[1724381805448,0.05255865,144.89,144.87,3.50098487]
[1724381808637,0.05255865,144.89,144.88,3.4504]
[1724381823353,0.05255865,144.89,144.87,3.50088487]
[1724381824047,0.05255865,144.89,144.88,3.4504]
[1724381825863,0.05255865,144.89,144.87,3.50088487]
[1724381847574,0.05255865,144.89,144.88,10.8504]
[1724381847879,67.26315353,144.93,144.88,7.4]
[1724381848081,67.26315353,144.93,144.89,7.4]
[1724381848775,0.05115526,144.92,144.9,3.4497]
[1724381848984,0.05115526,144.92,144.9,3.50049701]
[1724381849578,0.05115526,144.92,144.9,0.05079701]
[1724381849777,7.45115526,144.92,144.9,0.05079701]
[1724381849977,7.4,144.91,144.9,0.05079701]
[1724381850188,10.8497,144.91,144.9,0.05079701]
[1724381853583,37.0,144.91,144.83,7.4]
[1724381853783,7.4,144.88,144.83,7.4]
[1724381854287,7.4,144.88,144.8,3.9877]
[1724381854591,7.44684458,144.85,144.83,0.04725973]
[1724381854797,7.45182899,144.85,144.83,0.04458345]
[1724381854999,10.90312899,144.85,144.83,0.04458345]
[1724381855190,3.50312899,144.85,144.83,0.04458345]
[1724381856089,0.05182899,144.85,144.83,3.49608345]
[1724381864897,7.45182899,144.85,144.83,0.04458345]
[1724381866395,0.05182899,144.85,144.83,0.04458345]
[1724381866996,0.05182899,144.85,144.83,3.49598345]
[1724381868496,0.05182899,144.85,144.84,3.4513]
[1724381871799,0.05182899,144.85,144.83,0.04458345]
[1724381871800,7.45182899,144.85,144.83,0.04458345]
[1724381872205,3.4513,144.84,144.83,0.04458345]
[1724381873329,3.50292899,144.85,144.83,0.04458345]
[1724381875810,10.8513,144.84,144.83,0.04458345]
[1724381884415,3.4522,144.81,144.75,10.0073]
[1724381884714,10.8522,144.81,144.75,10.0073]
[1724381885205,10.8522,144.81,144.78,3.4527]
[1724381885402,10.89770428,144.81,144.78,3.49923954]
[1724381899121,7.4,144.79,144.65,6.9117]
[1724381899318,7.4,144.77,144.71,11.4517]
[1724381899623,10.8529,144.78,144.75,3.4533]
[1724381900121,10.89857763,144.78,144.75,3.4533]
[1724381900426,3.453,144.77,144.75,3.4533]
[1724381901226,3.453,144.77,144.71,4.0517]
[1724381901227,7.4,144.76,144.71,4.0517]
[1724381901423,0.04563711,144.75,144.72,7.4]
[1724381901623,0.04696418,144.75,144.72,7.4]
[1724381903229,0.04696418,144.75,144.74,3.4537]
[1724381924649,7.44696418,144.75,144.71,4.0517]
[1724381924855,7.4,144.73,144.71,2.7426]
[1724381925046,0.04696418,144.75,144.71,1.3825]
[1724381925656,0.04696418,144.75,144.72,3.4541]
[1724381925851,7.44696418,144.75,144.71,1.3825]
[1724381926151,3.454,144.73,144.68,1.3838]
[1724381926351,0.04937944,144.72,144.68,8.7838]
[1724381927360,0.04937944,144.72,144.71,3.4544]
[1724381932453,0.04937944,144.72,144.71,10.8544]
[1724381934857,0.04937944,144.72,144.71,3.4544]
[1724381935053,0.04937944,144.72,144.71,10.8544]
[1724381939966,0.04937944,144.72,144.71,3.4544]
[1724381944570,0.04937944,144.72,144.66,7.4]
[1724381945868,0.04937944,144.72,144.69,3.4547]
[1724381946066,0.04937944,144.72,144.66,7.4]
[1724381946265,7.44937944,144.72,144.68,3.455]
[1724381947364,0.04937944,144.72,144.68,3.455]
[1724381947564,10.90367944,144.72,144.65,55.24580026]
[1724381947773,0.04937944,144.72,144.66,7.4]
[1724381948063,0.04937944,144.72,144.65,55.24580026]
[1724381948366,0.04937944,144.72,144.67,7.4]
[1724381948774,0.04937944,144.72,144.69,3.4547]
[1724381950357,0.04937944,144.72,144.7,3.4546]
[1724381952966,0.04937944,144.72,144.71,3.4544]
[1724381959677,3.4544,144.71,144.65,55.24580026]
[1724381959978,0.04937944,144.72,144.67,7.4]
[1724381960375,0.04937944,144.72,144.7,3.4544]
[1724381960978,0.04937944,144.72,144.71,3.4544]
[1724381962776,0.04937944,144.72,144.71,10.8544]
[1724381962978,0.04937944,144.72,144.71,3.4544]
[1724381977881,0.04937944,144.72,144.71,10.8544]
[1724381980795,15.29243668,144.89,144.71,10.89591097]
[1724381981092,7.4,144.81,144.75,7.4]
[1724381981684,10.8522,144.81,144.77,3.50094241]
[1724381981885,0.04607737,144.79,144.77,3.50094241]
[1724381987290,0.04607737,144.79,144.78,3.4528]
[1724381989393,0.04607737,144.79,144.78,10.8528]
[1724381995403,3.4512,144.85,144.82,3.4517]
[1724381996099,3.4513,144.84,144.81,3.4519]
[1724381996305,3.49754283,144.84,144.81,3.50129555]
[1724381998305,3.49754283,144.84,144.82,3.4517]
[1724381999197,0.04624283,144.84,144.81,0.04939555]
[1724382000505,0.04624283,144.84,144.82,3.4517]
[1724382001399,0.04624283,144.84,144.81,0.04939555]
[1724382001400,3.49754283,144.84,144.81,3.50129555]
[1724382001603,7.4,144.83,144.81,0.04939555]
[1724382002597,10.8516,144.83,144.81,0.04939555]
[1724382003810,10.8516,144.83,144.81,3.50139555]
[1724382005014,3.4516,144.83,144.81,3.50139555]
[1724382005812,3.49774283,144.84,144.81,3.50139555]
[1724382006510,0.04624283,144.84,144.81,7.44939555]
[1724382006711,0.04624283,144.84,144.82,7.4]
[1724382007608,0.04624283,144.84,144.83,3.4516]
[1724382007808,0.04624283,144.84,144.83,10.8516]
[1724382009318,0.04624283,144.84,144.83,3.4516]
[1724382010512,0.04624283,144.84,144.83,10.8516]
[1724382011119,0.04624283,144.84,144.83,3.4516]
[1724382014318,0.04624283,144.84,144.82,3.4517]
[1724382015514,0.04624283,144.84,144.83,3.4516]
[1724382021727,0.04624283,144.84,144.81,0.04939555]
[1724382021931,7.44624283,144.84,144.81,0.04939555]
[1724382022619,3.4516,144.83,144.81,0.04939555]
[1724382025934,0.04624283,144.84,144.81,0.04939555]
[1724382026141,3.49764283,144.84,144.81,10.90129555]
[1724382026944,3.49764283,144.84,144.82,3.4518]
[1724382029341,3.49764283,144.84,144.82,10.8518]
[1724382029940,0.04624283,144.84,144.83,10.8516]
[1724382030243,27.62,144.88,144.83,7.4]
[1724382030545,31.0704,144.88,144.86,7.4]
[1724382031339,31.1155302,144.88,144.86,7.45261209]
[1724382032947,3.4955302,144.88,144.86,7.45261209]
[1724382033545,3.4506,144.87,144.86,0.05261209]
[1724382034155,3.4956302,144.88,144.86,0.05261209]
[1724382035243,3.4956302,144.88,144.86,7.45261209]
[1724382035244,0.0451302,144.88,144.86,7.45261209]
[1724382036448,3.4955302,144.88,144.86,10.90331209]
[1724382038351,3.4955302,144.88,144.86,7.45261209]
[1724382039146,3.4955302,144.88,144.86,0.05261209]
[1724382039853,3.4506,144.87,144.86,0.05261209]
[1724382040450,10.8506,144.87,144.86,0.05261209]
[1724382046248,3.4516,144.83,144.81,3.452]
[1724382046857,3.4514,144.84,144.81,3.452]
[1724382047248,3.49523404,144.84,144.81,3.49946865]
[1724382048155,7.44383404,144.84,144.81,0.04746865]
[1724382050459,3.4518,144.82,144.81,0.04746865]
[1724382064268,3.4516,144.83,144.81,0.04746865]
[1724382064470,0.04383404,144.84,144.81,7.44746865]
[1724382065371,0.04383404,144.84,144.81,0.04746865]
[1724382065567,7.44383404,144.84,144.81,0.04746865]
[1724382065770,3.4518,144.82,144.81,0.04746865]
[1724382076775,0.04383404,144.84,144.81,0.04746865]
[1724382076776,0.04383404,144.84,144.81,7.44746865]
[1724382076975,0.04383404,144.84,144.82,7.4]
[1724382077377,0.04383404,144.84,144.82,10.8518]
[1724382080970,0.04383404,144.84,144.83,10.8516]
[1724382081171,27.6,144.88,144.83,7.4]
[1724382081375,27.6,144.88,144.85,7.4]
[1724382081570,31.0504,144.88,144.85,7.4]
[1724382081776,31.0504,144.88,144.85,10.851]
[1724382082175,31.09913144,144.88,144.85,10.90303924]
[1724382083383,27.64873144,144.88,144.86,7.4]
[1724382083875,0.04873144,144.88,144.87,3.4506]
[1724382084687,0.04873144,144.88,144.86,10.8508]
[1724382086086,0.04873144,144.88,144.87,3.4506]
[1724382086985,0.04873144,144.88,144.86,10.8508]
[1724382087173,0.04873144,144.88,144.86,7.4]
[1724382087377,0.04873144,144.88,144.87,3.4506]
[1724382090882,0.04873144,144.88,144.86,10.8507]
[1724382091189,0.04873144,144.88,144.86,7.4]
[1724382092788,0.04873144,144.88,144.86,10.8507]
[1724382092981,0.04873144,144.88,144.86,7.4]
[1724382093486,0.04873144,144.88,144.86,10.8507]
[1724382096482,0.04873144,144.88,144.87,3.4506]
[1724382102186,0.04873144,144.88,144.86,7.4]
[1724382102385,0.04873144,144.88,144.87,7.4]
[1724382103184,0.04873144,144.88,144.85,0.05203924]
[1724382103891,0.04873144,144.88,144.85,3.50293924]
[1724382103892,3.49923144,144.88,144.85,3.50293924]
[1724382104589,3.4506,144.87,144.85,3.50293924]
[1724382104790,3.4506,144.87,144.85,0.05203924]
[1724382104987,0.04873144,144.88,144.85,0.05203924]
[1724382105391,3.49923144,144.88,144.85,3.50293924]
[1724382106086,3.49923144,144.88,144.86,7.4]
[1724382108092,3.4506,144.87,144.85,3.50293924]
[1724382108295,3.4506,144.87,144.85,0.05203924]
[1724382108482,0.04873144,144.88,144.85,0.05203924]
[1724382109287,3.4508,144.87,144.85,0.05203924]
[1724382109989,3.4508,144.87,144.85,3.50313924]
[1724382110296,3.49923144,144.88,144.85,10.90313924]
[1724382112190,3.49923144,144.88,144.86,7.4]
[1724382113483,3.49923144,144.88,144.86,10.8508]
[1724382113684,3.49923144,144.88,144.87,7.4]
[1724382113885,0.04873144,144.88,144.87,7.4]
[1724382114989,0.04873144,144.88,144.87,10.8506]
[1724382116097,0.04873144,144.88,144.87,7.4]
[1724382117587,3.49923144,144.88,144.85,3.50313924]
[1724382117791,3.49923144,144.88,144.86,7.4]
[1724382119494,3.4506,144.87,144.85,3.50313924]
[1724382119793,0.04873144,144.88,144.85,10.90313924]
[1724382120195,3.49923144,144.88,144.85,10.90313924]
[1724382122595,3.4508,144.86,144.85,0.05203924]
[1724382124695,3.4515,144.84,144.78,2.5942]
[1724382124898,3.4515,144.84,144.8,7.4]
[1724382125701,0.04973513,144.83,144.81,3.49993571]
[1724382125902,0.04973513,144.83,144.81,10.89993571]
[1724382128103,0.04973513,144.83,144.82,3.4518]
[1724382129601,0.04973513,144.83,144.81,7.44793571]
[1724382129602,0.04973513,144.83,144.81,3.49983571]
[1724382129801,0.04973513,144.83,144.81,10.89983571]
[1724382130294,0.04973513,144.83,144.82,3.4518]
[1724382131703,0.04973513,144.83,144.81,10.89993571]
[1724382132499,0.04973513,144.83,144.82,3.4518]
[1724382132907,0.04973513,144.83,144.82,10.8518]
[1724382139101,0.04973513,144.83,144.82,3.4518]
[1724382139516,0.04973513,144.83,144.81,0.04793571]
[1724382139700,0.04973513,144.83,144.81,7.44793571]
[1724382141407,0.04973513,144.83,144.81,10.89983571]
[1724382141614,3.50133513,144.83,144.81,3.49983571]
[1724382141914,3.50133513,144.83,144.81,0.04793571]
[1724382143307,0.04973513,144.83,144.81,3.49993571]
[1724382145914,3.50133513,144.83,144.81,3.49993571]
[1724382146111,3.50133513,144.83,144.81,0.04793571]
[1724382146617,3.50133513,144.83,144.81,3.49993571]
[1724382148122,3.50133513,144.83,144.81,0.04793571]
[1724382148420,3.4518,144.82,144.81,0.04793571]
[1724382149922,3.50143513,144.83,144.81,0.04793571]
[1724382152627,3.4518,144.82,144.81,0.04793571]
[1724382154423,0.04973513,144.83,144.81,0.04793571]
[1724382154424,3.50133513,144.83,144.81,0.04793571]
[1724382155526,3.4518,144.82,144.81,0.04793571]
[1724382155830,0.04973513,144.83,144.81,0.04793571]
[1724382156225,3.50153513,144.83,144.81,0.04793571]
[1724382161037,0.04973513,144.83,144.82,3.4518]
[1724382161336,0.04973513,144.83,144.81,0.04793571]